[Event "*** SCC Grand Prix: Titled Tuesday Blitz"]
[Site "Chess.com"]
[Date "2020.08.11"]
[Round "10"]
[White "ManuDavid2910"]
[Black "GigaQuparadze"]
[Result "0-1"]
[WhiteElo "2650"]
[BlackElo "2910"]
[TimeControl "180+1"]
[EndTime "11:58:21 PDT"]
[Termination "GigaQuparadze won by resignation"]

1. e4 {[%clk 0:03:00.9]} 1... c5 {[%clk 0:02:57.3]} 2. Nf3 {[%clk 0:03:00.5]}
2... Nc6 {[%clk 0:02:53.7]} 3. d4 {[%clk 0:02:59.9]} 3... cxd4 {[%clk
0:02:54.6]} 4. Nxd4 {[%clk 0:03:00.8]} 4... Qc7 {[%clk 0:02:54.7]} 5. Nc3 {[%clk
0:03:01]} 5... e6 {[%clk 0:02:54.9]} 6. a3 {[%clk 0:03:00.9]} 6... a6 {[%clk
0:02:55.1]} 7. Be3 {[%clk 0:03:00.9]} 7... Nf6 {[%clk 0:02:55.5]} 8. Be2 {[%clk
0:03:01.5]} 8... Be7 {[%clk 0:02:53.2]} 9. O-O {[%clk 0:03:01.7]} 9... O-O
{[%clk 0:02:52.9]} 10. Kh1 {[%clk 0:03:02.3]} 10... d6 {[%clk 0:02:52.9]} 11. f4
{[%clk 0:03:02.4]} 11... Nxd4 {[%clk 0:02:52.7]} 12. Bxd4 {[%clk 0:03:03.3]}
12... e5 {[%clk 0:02:53.6]} 13. Be3 {[%clk 0:03:03.5]} 13... exf4 {[%clk
0:02:53]} 14. Bxf4 {[%clk 0:03:04.4]} 14... Be6 {[%clk 0:02:53.3]} 15. Bf3
{[%clk 0:03:04.5]} 15... Rac8 {[%clk 0:02:52.8]} 16. Qd2 {[%clk 0:03:04.7]}
16... Nd7 {[%clk 0:02:52.9]} 17. Rad1 {[%clk 0:02:58.1]} 17... Ne5 {[%clk
0:02:53]} 18. Bg3 {[%clk 0:02:56]} 18... Nc4 {[%clk 0:02:52.6]} 19. Qc1 {[%clk
0:02:55.4]} 19... Nxb2 {[%clk 0:02:52.7]} 20. Qxb2 {[%clk 0:02:56.3]} 20... Qxc3
{[%clk 0:02:52.3]} 21. Qxb7 {[%clk 0:02:56.5]} 21... Rc7 {[%clk 0:02:51.8]} 22.
Qxa6 {[%clk 0:02:56.1]} 22... Bc4 {[%clk 0:02:51.7]} 23. Qb6 {[%clk 0:02:50.7]}
23... Bxf1 {[%clk 0:02:51.2]} 24. Rxf1 {[%clk 0:02:51.6]} 24... Qxc2 {[%clk
0:02:50.2]} 25. e5 {[%clk 0:02:29.4]} 25... Qc4 {[%clk 0:02:35.8]} 26. Rd1
{[%clk 0:02:13.4]} 26... dxe5 {[%clk 0:02:35.6]} 27. Bxe5 {[%clk 0:02:14.3]}
27... Rc5 {[%clk 0:02:34.9]} 28. Ba1 {[%clk 0:01:58.3]} 28... Rb5 {[%clk
0:02:32.9]} 29. Qe3 {[%clk 0:01:53.5]} 29... Bg5 {[%clk 0:02:29.3]} 30. Qe1
{[%clk 0:01:53.2]} 30... Qa2 {[%clk 0:02:27]} 31. Qf1 {[%clk 0:01:40.3]} 31...
Ra5 {[%clk 0:02:22.4]} 32. Bc3 {[%clk 0:01:37.7]} 32... Rf5 {[%clk 0:02:19.7]}
33. Qd3 {[%clk 0:01:33.7]} 33... Rf4 {[%clk 0:01:41.7]} 34. Bb4 {[%clk
0:01:28.3]} 34... Re8 {[%clk 0:01:38.1]} 35. Qb5 {[%clk 0:01:21]} 35... Qe6
{[%clk 0:01:10.2]} 36. Bc6 {[%clk 0:00:32.7]} 36... Rd8 {[%clk 0:00:53.2]} 37.
Re1 {[%clk 0:00:27.2]} 37... Qc4 {[%clk 0:00:52.4]} 38. g3 {[%clk 0:00:17.6]}
38... Qxb5 {[%clk 0:00:48.2]} 39. Bxb5 {[%clk 0:00:18.5]} 39... Rfd4 {[%clk
0:00:48.4]} 40. Ba5 {[%clk 0:00:16.3]} 40... Rd1 {[%clk 0:00:47.4]} 41. Kg2
{[%clk 0:00:16]} 41... Rxe1 {[%clk 0:00:46.8]} 42. Bxe1 {[%clk 0:00:16.9]} 42...
Rd5 {[%clk 0:00:46.2]} 43. a4 {[%clk 0:00:17]} 43... Bd8 {[%clk 0:00:45.4]} 44.
h4 {[%clk 0:00:17.1]} 44... Rd4 {[%clk 0:00:45.5]} 45. Bf2 {[%clk 0:00:17.1]}
45... Rb4 {[%clk 0:00:44.8]} 46. Kf3 {[%clk 0:00:17]} 46... h5 {[%clk 0:00:45]}
47. Bc5 {[%clk 0:00:17.2]} 47... Rb3+ {[%clk 0:00:45.4]} 48. Kg2 {[%clk
0:00:17.1]} 48... Bc7 {[%clk 0:00:45.4]} 49. Bf2 {[%clk 0:00:16.6]} 49... g6
{[%clk 0:00:45.7]} 50. Bc4 {[%clk 0:00:12.8]} 50... Ra3 {[%clk 0:00:44.6]} 51.
Bb5 {[%clk 0:00:13.1]} 51... Kg7 {[%clk 0:00:44.1]} 52. Bd4+ {[%clk 0:00:12.8]}
52... f6 {[%clk 0:00:44.3]} 53. Bf2 {[%clk 0:00:13.1]} 53... Be5 {[%clk
0:00:44.3]} 54. Kh3 {[%clk 0:00:10.7]} 54... g5 {[%clk 0:00:44.4]} 55. hxg5
{[%clk 0:00:10.3]} 55... fxg5 {[%clk 0:00:45.3]} 56. Be8 {[%clk 0:00:09.1]}
56... h4 {[%clk 0:00:42.2]} 57. Bc5 {[%clk 0:00:06]} 0-1

[Event "*** SCC Grand Prix: Titled Tuesday Blitz"]
[Site "Chess.com"]
[Date "2020.08.11"]
[Round "10"]
[White "Isajevsky_Anton"]
[Black "Vuk2000"]
[Result "0-1"]
[WhiteElo "2610"]
[BlackElo "2735"]
[TimeControl "180+1"]
[EndTime "11:58:21 PDT"]
[Termination "Vuk2000 won on time"]

1. c4 {[%clk 0:03:00.9]} 1... e5 {[%clk 0:03:00]} 2. g3 {[%clk 0:03:00.7]} 2...
Nc6 {[%clk 0:03:00.5]} 3. Bg2 {[%clk 0:03:00.6]} 3... g6 {[%clk 0:03:01]} 4. Nc3
{[%clk 0:03:00.4]} 4... Bg7 {[%clk 0:03:00.8]} 5. e4 {[%clk 0:03:00]} 5... d6
{[%clk 0:03:00.2]} 6. Nge2 {[%clk 0:03:00.2]} 6... Be6 {[%clk 0:03:00.3]} 7. d3
{[%clk 0:02:59.8]} 7... Qd7 {[%clk 0:03:00.6]} 8. h3 {[%clk 0:02:53.6]} 8...
Nge7 {[%clk 0:02:59.8]} 9. Rb1 {[%clk 0:02:51.1]} 9... a6 {[%clk 0:02:57.5]} 10.
b4 {[%clk 0:02:49.8]} 10... O-O {[%clk 0:02:48.6]} 11. a4 {[%clk 0:02:42.6]}
11... f5 {[%clk 0:02:11.1]} 12. exf5 {[%clk 0:02:39.5]} 12... Nxf5 {[%clk
0:02:09.7]} 13. O-O {[%clk 0:02:21.4]} 13... Nfd4 {[%clk 0:02:07]} 14. Nxd4
{[%clk 0:02:18]} 14... exd4 {[%clk 0:01:48]} 15. Nd5 {[%clk 0:02:17.5]} 15...
Bxh3 {[%clk 0:01:42.4]} 16. b5 {[%clk 0:02:06.4]} 16... axb5 {[%clk 0:01:26.6]}
17. axb5 {[%clk 0:02:07.3]} 17... Ne5 {[%clk 0:01:24.2]} 18. f4 {[%clk
0:02:03.1]} 18... Bxg2 {[%clk 0:01:23.5]} 19. Kxg2 {[%clk 0:02:03]} 19... Ng4
{[%clk 0:01:23.6]} 20. Nxc7 {[%clk 0:01:55.8]} 20... Ra2+ {[%clk 0:01:18.6]} 21.
Kg1 {[%clk 0:01:49.8]} 21... Nh2 {[%clk 0:00:28.8]} 22. Rf2 {[%clk 0:01:37.9]}
22... Rxf2 {[%clk 0:00:27.1]} 23. Kxf2 {[%clk 0:01:38.8]} 23... Qh3 {[%clk
0:00:23.1]} 24. Qg1 {[%clk 0:00:47.5]} 24... Ng4+ {[%clk 0:00:21]} 25. Ke2
{[%clk 0:00:46.8]} 25... Qh5 {[%clk 0:00:20.7]} 26. Kd2 {[%clk 0:00:43.6]} 26...
Ne3 {[%clk 0:00:20.3]} 27. Ba3 {[%clk 0:00:33]} 27... Rc8 {[%clk 0:00:07.2]} 28.
Bxd6 {[%clk 0:00:30.1]} 28... Qf3 {[%clk 0:00:07.2]} 29. b6 {[%clk 0:00:16.4]}
29... Rd8 {[%clk 0:00:06.4]} 30. c5 {[%clk 0:00:14.2]} 30... Nf5 {[%clk
0:00:05.5]} 31. Re1 {[%clk 0:00:11.3]} 31... Nxd6 {[%clk 0:00:04.5]} 32. cxd6
{[%clk 0:00:11.7]} 32... Rxd6 {[%clk 0:00:05.4]} 33. Re8+ {[%clk 0:00:11.5]}
33... Kf7 {[%clk 0:00:05.9]} 34. Qe1 {[%clk 0:00:12.1]} 34... Bf6 {[%clk
0:00:04.4]} 35. Rb8 {[%clk 0:00:07]} 35... Qc6 {[%clk 0:00:04]} 36. Qe8+ {[%clk
0:00:06.1]} 36... Qxe8 {[%clk 0:00:04.1]} 37. Rxe8 {[%clk 0:00:06.1]} 37... Rxb6
{[%clk 0:00:04.1]} 38. Rb8 {[%clk 0:00:05.7]} 38... Rb2+ {[%clk 0:00:04.3]} 39.
Kc1 {[%clk 0:00:05.8]} 39... Rb3 {[%clk 0:00:04.8]} 40. Kd2 {[%clk 0:00:04.9]}
40... Be7 {[%clk 0:00:04.2]} 41. Nd5 {[%clk 0:00:04.4]} 41... Bd6 {[%clk
0:00:04.6]} 42. Rd8 {[%clk 0:00:03.7]} 42... Ke6 {[%clk 0:00:05]} 0-1

[Event "*** SCC Grand Prix: Titled Tuesday Blitz"]
[Site "Chess.com"]
[Date "2020.08.11"]
[Round "10"]
[White "ahachess"]
[Black "shnitez"]
[Result "0-1"]
[WhiteElo "2299"]
[BlackElo "2461"]
[TimeControl "180+1"]
[EndTime "11:58:30 PDT"]
[Termination "shnitez won by resignation"]

1. d4 {[%clk 0:03:00.8]} 1... Nf6 {[%clk 0:02:58.7]} 2. c4 {[%clk 0:03:00.8]}
2... c5 {[%clk 0:02:58.4]} 3. d5 {[%clk 0:02:58.9]} 3... e5 {[%clk 0:02:57.9]}
4. Nc3 {[%clk 0:02:58.4]} 4... d6 {[%clk 0:02:58.2]} 5. g3 {[%clk 0:02:52.7]}
5... Be7 {[%clk 0:02:57.6]} 6. Bg2 {[%clk 0:02:48.2]} 6... Nbd7 {[%clk
0:02:50.3]} 7. Nf3 {[%clk 0:02:40.4]} 7... Nf8 {[%clk 0:02:31.8]} 8. e4 {[%clk
0:02:27.4]} 8... Ng6 {[%clk 0:02:28.1]} 9. Qd3 {[%clk 0:02:22.3]} 9... h5 {[%clk
0:02:25.3]} 10. h4 {[%clk 0:02:22]} 10... a6 {[%clk 0:02:24.4]} 11. Bd2 {[%clk
0:02:12.5]} 11... Rb8 {[%clk 0:02:16.4]} 12. Ng5 {[%clk 0:02:06]} 12... Bd7
{[%clk 0:02:12.1]} 13. a3 {[%clk 0:01:47.9]} 13... O-O {[%clk 0:01:46.9]} 14.
O-O {[%clk 0:01:38.4]} 14... b5 {[%clk 0:01:41.1]} 15. cxb5 {[%clk 0:01:38.2]}
15... axb5 {[%clk 0:01:41.1]} 16. b4 {[%clk 0:01:38.4]} 16... c4 {[%clk
0:01:02.9]} 17. Qe2 {[%clk 0:01:38.3]} 17... Qe8 {[%clk 0:00:50.4]} 18. Rfb1
{[%clk 0:01:28.1]} 18... Bd8 {[%clk 0:00:43.4]} 19. Bh3 {[%clk 0:01:15.7]} 19...
Ng4 {[%clk 0:00:28.6]} 20. f3 {[%clk 0:01:12.8]} 20... Bb6+ {[%clk 0:00:27.8]}
21. Kg2 {[%clk 0:01:11.6]} 21... Nf2 {[%clk 0:00:10.4]} 22. Bxd7 {[%clk
0:01:07.4]} 22... Qxd7 {[%clk 0:00:11.3]} 23. Be3 {[%clk 0:01:04.3]} 23... Bxe3
{[%clk 0:00:08.9]} 24. Qxe3 {[%clk 0:01:03.6]} 24... Nd3 {[%clk 0:00:09.8]} 25.
Nh3 {[%clk 0:00:59.5]} 25... Ra8 {[%clk 0:00:09.3]} 26. Qg5 {[%clk 0:00:53.4]}
26... Ra6 {[%clk 0:00:08.2]} 27. Qxh5 {[%clk 0:00:51.4]} 27... Rfa8 {[%clk
0:00:08.6]} 28. Ng5 {[%clk 0:00:49.3]} 28... Ngf4+ {[%clk 0:00:08.4]} 29. gxf4
{[%clk 0:00:45.9]} 29... Nxf4+ {[%clk 0:00:09.3]} 30. Kf2 {[%clk 0:00:43]} 30...
Nxh5 {[%clk 0:00:10.2]} 31. a4 {[%clk 0:00:41.5]} 31... bxa4 {[%clk 0:00:09.5]}
32. b5 {[%clk 0:00:41.5]} 32... Ra5 {[%clk 0:00:09.9]} 33. b6 {[%clk 0:00:41.4]}
33... Nf4 {[%clk 0:00:10.3]} 34. Rb4 {[%clk 0:00:38.3]} 34... f6 {[%clk
0:00:09.8]} 35. b7 {[%clk 0:00:31.1]} 35... Rb8 {[%clk 0:00:09.1]} 36. Rxc4
{[%clk 0:00:31.4]} 36... fxg5 {[%clk 0:00:07.7]} 37. hxg5 {[%clk 0:00:30.2]}
37... Rxb7 {[%clk 0:00:07.5]} 38. Rh1 {[%clk 0:00:25.1]} 38... Rb2+ {[%clk
0:00:06.2]} 39. Ke3 {[%clk 0:00:25.4]} 39... Rb3 {[%clk 0:00:05.9]} 40. g6
{[%clk 0:00:22.7]} 40... Rxc3+ {[%clk 0:00:05.5]} 41. Rxc3 {[%clk 0:00:22.9]}
41... Rc5 {[%clk 0:00:05.5]} 42. Ra3 {[%clk 0:00:20.1]} 42... Qa7 {[%clk
0:00:05.4]} 43. Kd2 {[%clk 0:00:18.7]} 43... Rb5 {[%clk 0:00:04.9]} 44. Rh2
{[%clk 0:00:17.5]} 44... Qd4+ {[%clk 0:00:04.3]} 45. Kc1 {[%clk 0:00:16.1]}
45... Qc5+ {[%clk 0:00:04.1]} 46. Rc2 {[%clk 0:00:16]} 46... Qxa3+ {[%clk
0:00:03.9]} 47. Kd2 {[%clk 0:00:16.6]} 47... Rb2 {[%clk 0:00:03.2]} 0-1

[Event "*** SCC Grand Prix: Titled Tuesday Blitz"]
[Site "Chess.com"]
[Date "2020.08.11"]
[Round "10"]
[White "TokChess"]
[Black "tan275"]
[Result "1/2-1/2"]
[WhiteElo "2395"]
[BlackElo "2249"]
[TimeControl "180+1"]
[EndTime "11:58:31 PDT"]
[Termination "Game drawn by stalemate"]

1. Nf3 {[%clk 0:03:00.9]} 1... d5 {[%clk 0:02:59.5]} 2. g3 {[%clk 0:03:00.6]}
2... c5 {[%clk 0:02:59.1]} 3. Bg2 {[%clk 0:03:00.7]} 3... Nc6 {[%clk 0:02:59.5]}
4. d4 {[%clk 0:03:00.4]} 4... cxd4 {[%clk 0:02:56.3]} 5. Nxd4 {[%clk 0:03:00.5]}
5... Nf6 {[%clk 0:02:55.3]} 6. O-O {[%clk 0:02:59.4]} 6... g6 {[%clk 0:02:51.6]}
7. c4 {[%clk 0:02:57.9]} 7... Bg7 {[%clk 0:02:48.2]} 8. cxd5 {[%clk 0:02:57.7]}
8... Nxd5 {[%clk 0:02:43.8]} 9. Nxc6 {[%clk 0:02:58.1]} 9... bxc6 {[%clk
0:02:43.6]} 10. Qc2 {[%clk 0:02:45.7]} 10... Qb6 {[%clk 0:02:31.2]} 11. a3
{[%clk 0:02:29.2]} 11... O-O {[%clk 0:02:29.6]} 12. e4 {[%clk 0:02:29.4]} 12...
Nc7 {[%clk 0:02:17.6]} 13. Nc3 {[%clk 0:02:29.4]} 13... Ba6 {[%clk 0:02:15.8]}
14. Be3 {[%clk 0:02:27.8]} 14... Qa5 {[%clk 0:02:11.1]} 15. Rfd1 {[%clk
0:02:26]} 15... Rfd8 {[%clk 0:02:09.2]} 16. Rxd8+ {[%clk 0:02:13.9]} 16... Rxd8
{[%clk 0:02:08.2]} 17. Rd1 {[%clk 0:02:14.5]} 17... Ne6 {[%clk 0:01:49.8]} 18.
Rxd8+ {[%clk 0:01:44.1]} 18... Qxd8 {[%clk 0:01:45.8]} 19. Bf1 {[%clk
0:01:24.4]} 19... Bxf1 {[%clk 0:01:41.3]} 20. Kxf1 {[%clk 0:01:24.6]} 20... Nd4
{[%clk 0:01:26.8]} 21. Qd3 {[%clk 0:01:23.7]} 21... c5 {[%clk 0:01:20.1]} 22.
Ne2 {[%clk 0:01:12.3]} 22... Qb6 {[%clk 0:01:15.3]} 23. b4 {[%clk 0:01:04.1]}
23... e5 {[%clk 0:01:02]} 24. bxc5 {[%clk 0:01:00.1]} 24... Qxc5 {[%clk
0:00:59.5]} 25. Bxd4 {[%clk 0:01:00.1]} 25... exd4 {[%clk 0:00:58.5]} 26. f4
{[%clk 0:01:00.1]} 26... h6 {[%clk 0:00:40.3]} 27. e5 {[%clk 0:00:52.2]} 27...
g5 {[%clk 0:00:28.7]} 28. Nxd4 {[%clk 0:00:45.5]} 28... gxf4 {[%clk 0:00:26.5]}
29. gxf4 {[%clk 0:00:39.1]} 29... Qc1+ {[%clk 0:00:25.5]} 30. Kg2 {[%clk
0:00:35.1]} 30... Qxf4 {[%clk 0:00:25.6]} 31. Nc6 {[%clk 0:00:22]} 31... Qg4+
{[%clk 0:00:21]} 32. Kf2 {[%clk 0:00:17.8]} 32... Qh4+ {[%clk 0:00:19.1]} 33.
Kg2 {[%clk 0:00:18]} 33... Qg4+ {[%clk 0:00:18.7]} 34. Kf2 {[%clk 0:00:15.1]}
34... Qf4+ {[%clk 0:00:17.3]} 35. Qf3 {[%clk 0:00:13.4]} 35... Bxe5 {[%clk
0:00:13.1]} 36. Qxf4 {[%clk 0:00:10.6]} 36... Bxf4 {[%clk 0:00:12.8]} 37. Nxa7
{[%clk 0:00:03.6]} 37... Bxh2 {[%clk 0:00:12.5]} 38. Nc6 {[%clk 0:00:03.2]}
38... Bc7 {[%clk 0:00:11]} 39. a4 {[%clk 0:00:03.5]} 39... h5 {[%clk 0:00:11.2]}
40. a5 {[%clk 0:00:02.9]} 40... Bxa5 {[%clk 0:00:11.1]} 41. Nxa5 {[%clk
0:00:03.2]} 41... Kg7 {[%clk 0:00:11.8]} 42. Nc6 {[%clk 0:00:03.7]} 42... Kg6
{[%clk 0:00:12.7]} 43. Kf3 {[%clk 0:00:04.1]} 43... f5 {[%clk 0:00:13.1]} 44.
Ne7+ {[%clk 0:00:04.1]} 44... Kf6 {[%clk 0:00:12.6]} 45. Nxf5 {[%clk 0:00:05]}
45... Kxf5 {[%clk 0:00:12.9]} 46. Kg3 {[%clk 0:00:05.6]} 46... Kg5 {[%clk
0:00:13.3]} 47. Kh3 {[%clk 0:00:06]} 47... h4 {[%clk 0:00:13.9]} 48. Kg2 {[%clk
0:00:06.1]} 48... Kg4 {[%clk 0:00:14.8]} 49. Kh2 {[%clk 0:00:06.7]} 49... h3
{[%clk 0:00:15.7]} 50. Kg1 {[%clk 0:00:07.1]} 50... Kh4 {[%clk 0:00:16.6]} 51.
Kh1 {[%clk 0:00:07.6]} 51... Kg3 {[%clk 0:00:17.1]} 52. Kg1 {[%clk 0:00:08.2]}
52... Kf3 {[%clk 0:00:17.3]} 53. Kh1 {[%clk 0:00:08.9]} 53... Kg3 {[%clk
0:00:17.6]} 54. Kg1 {[%clk 0:00:09.3]} 54... h2+ {[%clk 0:00:18.2]} 55. Kh1
{[%clk 0:00:09.9]} 55... Kh3 {[%clk 0:00:18.8]} 1/2-1/2

[Event "*** SCC Grand Prix: Titled Tuesday Blitz"]
[Site "Chess.com"]
[Date "2020.08.11"]
[Round "10"]
[White "RaunakSadhwani2005"]
[Black "abykhovsky"]
[Result "1-0"]
[WhiteElo "2951"]
[BlackElo "2762"]
[TimeControl "180+1"]
[EndTime "11:58:33 PDT"]
[Termination "RaunakSadhwani2005 won by resignation"]

1. d4 {[%clk 0:03:00.9]} 1... Nf6 {[%clk 0:02:59.4]} 2. Bf4 {[%clk 0:03:01.3]}
2... g6 {[%clk 0:02:58.9]} 3. Nc3 {[%clk 0:03:01.2]} 3... d5 {[%clk 0:02:58.6]}
4. e3 {[%clk 0:03:01.6]} 4... Bg7 {[%clk 0:02:57.2]} 5. h4 {[%clk 0:03:02.1]}
5... h5 {[%clk 0:02:57.2]} 6. Nf3 {[%clk 0:03:01.9]} 6... Bg4 {[%clk 0:02:55.8]}
7. Qd2 {[%clk 0:03:01.7]} 7... Bxf3 {[%clk 0:02:54.8]} 8. gxf3 {[%clk
0:03:02.6]} 8... e6 {[%clk 0:02:52.8]} 9. e4 {[%clk 0:03:01]} 9... O-O {[%clk
0:02:44.7]} 10. Bg5 {[%clk 0:02:53.2]} 10... Qd7 {[%clk 0:02:39.8]} 11. Bh3
{[%clk 0:02:48.2]} 11... c6 {[%clk 0:02:34]} 12. O-O-O {[%clk 0:02:44.6]} 12...
b5 {[%clk 0:02:33.7]} 13. Qe3 {[%clk 0:02:41.8]} 13... a5 {[%clk 0:02:25.3]} 14.
Rhg1 {[%clk 0:02:39.6]} 14... a4 {[%clk 0:02:14.1]} 15. Ne2 {[%clk 0:02:40]}
15... b4 {[%clk 0:02:13.8]} 16. Nf4 {[%clk 0:02:36.7]} 16... Kh7 {[%clk
0:01:43.7]} 17. e5 {[%clk 0:02:27.1]} 17... Ng8 {[%clk 0:01:40.3]} 18. Qd3
{[%clk 0:02:16.2]} 18... c5 {[%clk 0:01:35.8]} 19. dxc5 {[%clk 0:01:39.1]} 19...
Bxe5 {[%clk 0:00:54.8]} 20. Nxh5 {[%clk 0:01:09.8]} 20... b3 {[%clk 0:00:51.8]}
21. cxb3 {[%clk 0:01:00.9]} 21... Na6 {[%clk 0:00:50.7]} 22. Qe2 {[%clk
0:00:44.9]} 22... Qc7 {[%clk 0:00:43]} 23. Kb1 {[%clk 0:00:40]} 23... axb3
{[%clk 0:00:40.7]} 24. a3 {[%clk 0:00:39.1]} 24... Nb4 {[%clk 0:00:22.2]} 25. f4
{[%clk 0:00:36.6]} 25... Bh8 {[%clk 0:00:20.8]} 26. f5 {[%clk 0:00:35.6]} 26...
exf5 {[%clk 0:00:20.3]} 27. Bxf5 {[%clk 0:00:35.9]} 27... Nc2 {[%clk 0:00:17.8]}
28. Nf6+ {[%clk 0:00:20.1]} 28... Bxf6 {[%clk 0:00:14.8]} 29. Qh5+ {[%clk
0:00:19.5]} 29... Kg7 {[%clk 0:00:14.7]} 30. Bxg6 {[%clk 0:00:11]} 30... fxg6
{[%clk 0:00:13.6]} 31. Bh6+ {[%clk 0:00:11.3]} 31... Kh8 {[%clk 0:00:08.8]} 32.
Rxg6 {[%clk 0:00:08.4]} 32... Qh7 {[%clk 0:00:08.9]} 33. Rdg1 {[%clk 0:00:08.3]}
33... Nxa3+ {[%clk 0:00:08.1]} 34. bxa3 {[%clk 0:00:08.7]} 34... Rxa3 {[%clk
0:00:07.9]} 35. Bg7+ {[%clk 0:00:05.5]} 35... Bxg7 {[%clk 0:00:07.9]} 36. Qxh7+
{[%clk 0:00:06.4]} 36... Kxh7 {[%clk 0:00:08.5]} 37. Rxg7+ {[%clk 0:00:07.3]}
37... Kh8 {[%clk 0:00:09.4]} 38. R7g5 {[%clk 0:00:08]} 38... Nf6 {[%clk
0:00:08.8]} 39. Kb2 {[%clk 0:00:07.1]} 39... Ra2+ {[%clk 0:00:08.7]} 40. Kxb3
{[%clk 0:00:07]} 40... Rxf2 {[%clk 0:00:09.6]} 41. Rg6 {[%clk 0:00:06.4]} 41...
Rf3+ {[%clk 0:00:10]} 42. Kb4 {[%clk 0:00:06.5]} 42... Rf4+ {[%clk 0:00:10.5]}
43. Kb5 {[%clk 0:00:06.9]} 43... Rxh4 {[%clk 0:00:10.9]} 44. c6 {[%clk
0:00:07.1]} 44... Nh7 {[%clk 0:00:07.7]} 45. c7 {[%clk 0:00:07.4]} 45... Rc4
{[%clk 0:00:08]} 46. Rc6 {[%clk 0:00:07.9]} 46... Rxc6 {[%clk 0:00:08.3]} 47.
Kxc6 {[%clk 0:00:08.8]} 47... Nf6 {[%clk 0:00:09.2]} 48. Rf1 {[%clk 0:00:08.7]}
48... Kg7 {[%clk 0:00:09.1]} 49. Rb1 {[%clk 0:00:08.6]} 49... Rc8 {[%clk
0:00:04.3]} 50. Rb8 {[%clk 0:00:08.4]} 50... Rxc7+ {[%clk 0:00:04.6]} 51. Kxc7
{[%clk 0:00:09.3]} 51... Kg6 {[%clk 0:00:05]} 52. Kd6 {[%clk 0:00:09.5]} 52...
Kf5 {[%clk 0:00:05.5]} 53. Rb4 {[%clk 0:00:09.7]} 1-0

[Event "*** SCC Grand Prix: Titled Tuesday Blitz"]
[Site "Chess.com"]
[Date "2020.08.11"]
[Round "10"]
[White "PavelShkapenko"]
[Black "Grieve72"]
[Result "0-1"]
[WhiteElo "2659"]
[BlackElo "2408"]
[TimeControl "180+1"]
[EndTime "11:58:34 PDT"]
[Termination "Grieve72 won by resignation"]

1. e4 {[%clk 0:03:00.9]} 1... c5 {[%clk 0:02:59.7]} 2. c3 {[%clk 0:03:01.2]}
2... Nf6 {[%clk 0:02:59.3]} 3. e5 {[%clk 0:03:01.5]} 3... Nd5 {[%clk 0:02:59.9]}
4. d4 {[%clk 0:03:02.2]} 4... cxd4 {[%clk 0:03:00.2]} 5. cxd4 {[%clk 0:03:02.9]}
5... e6 {[%clk 0:02:59.7]} 6. Nc3 {[%clk 0:03:02.6]} 6... Nxc3 {[%clk
0:02:53.2]} 7. bxc3 {[%clk 0:03:02.8]} 7... d6 {[%clk 0:02:53.2]} 8. f4 {[%clk
0:03:02.2]} 8... Be7 {[%clk 0:02:15]} 9. Bd3 {[%clk 0:03:00.4]} 9... O-O {[%clk
0:02:09.3]} 10. Nf3 {[%clk 0:02:56.6]} 10... b6 {[%clk 0:02:06.6]} 11. O-O
{[%clk 0:02:54.2]} 11... Ba6 {[%clk 0:02:06.2]} 12. Bxa6 {[%clk 0:02:42.1]}
12... Nxa6 {[%clk 0:02:07.1]} 13. Qd3 {[%clk 0:02:42.5]} 13... Nc7 {[%clk
0:02:05.4]} 14. f5 {[%clk 0:02:41.6]} 14... dxe5 {[%clk 0:02:02]} 15. Nxe5
{[%clk 0:02:39.2]} 15... Bf6 {[%clk 0:01:50.1]} 16. Ng4 {[%clk 0:02:36.7]} 16...
Nd5 {[%clk 0:01:30.8]} 17. fxe6 {[%clk 0:01:47.1]} 17... fxe6 {[%clk 0:01:28.3]}
18. Nxf6+ {[%clk 0:01:44.1]} 18... Rxf6 {[%clk 0:01:23.8]} 19. Bd2 {[%clk
0:01:42.9]} 19... Qd6 {[%clk 0:01:12.6]} 20. Rxf6 {[%clk 0:01:39.1]} 20... Nxf6
{[%clk 0:01:12.4]} 21. Re1 {[%clk 0:01:38.9]} 21... Re8 {[%clk 0:01:04]} 22. Bg5
{[%clk 0:01:24.5]} 22... Nd7 {[%clk 0:00:30.1]} 23. Qe4 {[%clk 0:01:05.2]} 23...
e5 {[%clk 0:00:20]} 24. Bf4 {[%clk 0:00:41.6]} 24... Nf6 {[%clk 0:00:19.4]} 25.
dxe5 {[%clk 0:00:41.4]} 25... Nxe4 {[%clk 0:00:13.7]} 26. exd6 {[%clk 0:00:41]}
26... Nxd6 {[%clk 0:00:14.6]} 27. Rd1 {[%clk 0:00:35.3]} 27... Ne4 {[%clk
0:00:11]} 28. Rd3 {[%clk 0:00:19.7]} 28... Kf7 {[%clk 0:00:11]} 29. h3 {[%clk
0:00:18.6]} 29... Rc8 {[%clk 0:00:10.3]} 30. Be5 {[%clk 0:00:18.2]} 30... g6
{[%clk 0:00:09]} 31. Bd4 {[%clk 0:00:15.5]} 31... Ke6 {[%clk 0:00:08.9]} 32. Re3
{[%clk 0:00:14.4]} 32... Kd5 {[%clk 0:00:08.8]} 33. Rf3 {[%clk 0:00:14.6]} 33...
Kc4 {[%clk 0:00:08.4]} 34. Be5 {[%clk 0:00:12.5]} 34... a5 {[%clk 0:00:06.4]}
35. Rf4 {[%clk 0:00:09.3]} 35... Kd3 {[%clk 0:00:06.7]} 36. Rf3+ {[%clk
0:00:05.1]} 36... Kc2 {[%clk 0:00:07.2]} 37. a4 {[%clk 0:00:04.4]} 37... Nxc3
{[%clk 0:00:07.3]} 38. Rf4 {[%clk 0:00:02.6]} 38... Kb3 {[%clk 0:00:06.7]} 39.
Rf6 {[%clk 0:00:02.2]} 39... Nxa4 {[%clk 0:00:06.2]} 40. Bd4 {[%clk 0:00:02.6]}
40... b5 {[%clk 0:00:06.2]} 41. Rf3+ {[%clk 0:00:02.7]} 41... Nc3 {[%clk
0:00:05.9]} 42. Rf7 {[%clk 0:00:02.2]} 42... b4 {[%clk 0:00:05.9]} 43. Kh2
{[%clk 0:00:02.6]} 43... a4 {[%clk 0:00:06.2]} 44. Rb7 {[%clk 0:00:02.3]} 44...
Rc4 {[%clk 0:00:05.7]} 45. Be5 {[%clk 0:00:02.2]} 45... a3 {[%clk 0:00:06.1]}
46. Bd6 {[%clk 0:00:02.6]} 46... a2 {[%clk 0:00:06.2]} 47. Ra7 {[%clk
0:00:03.2]} 47... Na4 {[%clk 0:00:06.8]} 48. Be5 {[%clk 0:00:03.6]} 48... Rc3
{[%clk 0:00:05.8]} 49. Bxc3 {[%clk 0:00:02.9]} 49... bxc3 {[%clk 0:00:06.7]} 50.
Rb7+ {[%clk 0:00:03.3]} 50... Kc2 {[%clk 0:00:07]} 51. Ra7 {[%clk 0:00:03.7]}
51... a1=Q {[%clk 0:00:07.3]} 0-1